fUSD/lending_fUSD_20250804
["ID","MTS","AMOUNT","RATE_DAILY","PERIOD"]
[377219609,1754301039735,-500.0,0.00040273,5]
[377219610,1754301039745,-150.0,0.00040273,3]
[377219611,1754301039754,-607.50648958,0.00040273,5]
[377219612,1754301039764,-500.0,0.00040273,5]
[377219613,1754301039774,-21363.153708,0.0004028,3]
[377219614,1754301039785,-1294.81,0.00040293,2]
[377219615,1754301039794,-1084.85073515,0.00040821,5]
[377219616,1754301039803,-1000.0,0.00040821,5]
[377219617,1754301039813,-1000.0,0.00040821,5]
[377219618,1754301039822,-2305.97783824,0.00040916,15]
[377219619,1754301039831,-511.0,0.00040975,10]
[377219620,1754301039842,-186.15701626,0.00040995,15]
[377219621,1754301039852,-841.59890878,0.00041,3]
[377219622,1754301039861,-160.0,0.00041,90]
[377219623,1754301039870,-457.2201239,0.00041,3]
[377219624,1754301039881,-457.2201239,0.00041,30]
[377219625,1754301039890,-21363.153708,0.00041086,3]
[377219626,1754301039900,-205.97,0.00041095,120]
[377219627,1754301039910,-500.0,0.00041096,30]
[377219628,1754301039919,-500.0,0.00041096,30]
[377219629,1754301039929,-500.0,0.00041096,30]
[377219630,1754301039938,-500.0,0.00041096,30]
[377219631,1754301039947,-500.0,0.00041096,30]
[377219632,1754301039957,-500.0,0.00041096,30]
[377219633,1754301039966,-500.0,0.00041096,30]
[377219634,1754301039976,-500.0,0.00041096,30]
[377219635,1754301039986,-500.0,0.00041096,30]
[377219636,1754301039995,-500.0,0.00041096,30]
[377219637,1754301040004,-500.0,0.00041096,30]
[377219638,1754301040014,-500.0,0.00041096,30]
[377219639,1754301040024,-500.0,0.00041096,30]
[377219640,1754301040033,-500.0,0.00041096,30]
[377219641,1754301040042,-500.0,0.00041096,30]
[377219642,1754301040052,-500.0,0.00041096,30]
[377219643,1754301040061,-500.0,0.00041096,30]
[377219644,1754301040071,-500.0,0.00041096,30]
[377219645,1754301040080,-500.0,0.00041096,30]
[377219646,1754301040091,-500.0,0.00041096,30]
[377219647,1754301040101,-282.0,0.00041096,30]
[377219648,1754301040110,-1123.0,0.00041096,120]
[377219649,1754301040119,-500.0,0.00041096,30]
[377219650,1754301040129,-500.0,0.00041096,30]
[377219651,1754301040138,-500.0,0.00041096,30]
[377219652,1754301040147,-500.0,0.00041096,30]
[377219653,1754301040156,-500.0,0.00041096,30]
[377219654,1754301040166,-500.0,0.00041096,30]
[377219655,1754301040175,-500.0,0.00041096,30]
[377219656,1754301040184,-500.0,0.00041096,30]
[377219657,1754301040193,-500.0,0.00041096,30]
[377219658,1754301040203,-500.0,0.00041096,30]
[377219659,1754301040211,-500.0,0.00041096,30]
[377219660,1754301040221,-500.0,0.00041096,30]
[377219661,1754301040230,-500.0,0.00041096,30]
[377219662,1754301040239,-500.0,0.00041096,30]
[377219663,1754301040249,-500.0,0.00041096,30]
[377219664,1754301040258,-500.0,0.00041096,30]
[377219665,1754301040267,-500.0,0.00041096,30]
[377219666,1754301040276,-500.0,0.00041096,30]
[377219667,1754301040285,-500.0,0.00041096,30]
[377219668,1754301040294,-500.0,0.00041096,30]
[377219669,1754301040303,-500.0,0.00041096,30]
[377219670,1754301040313,-500.0,0.00041096,30]
[377219671,1754301040322,-500.0,0.00041096,30]
[377219672,1754301040332,-500.0,0.00041096,30]
[377219673,1754301040342,-500.0,0.00041096,30]
[377219674,1754301040352,-500.0,0.00041096,30]
[377219675,1754301040362,-500.0,0.00041096,30]
[377219676,1754301040375,-500.0,0.00041096,30]
[377219677,1754301040384,-500.0,0.00041096,30]
[377219678,1754301040394,-500.0,0.00041096,30]
[377219679,1754301040403,-500.0,0.00041096,30]
[377219680,1754301040413,-500.0,0.00041096,30]
[377219681,1754301040423,-500.0,0.00041096,30]
[377219682,1754301040432,-500.0,0.00041096,30]
[377219683,1754301040441,-500.0,0.00041096,30]
[377219684,1754301040452,-500.0,0.00041096,30]
[377219685,1754301040462,-500.0,0.00041096,30]
[377219686,1754301040471,-500.0,0.00041096,30]
[377219687,1754301040481,-500.0,0.00041096,30]
[377219688,1754301040490,-500.0,0.00041096,30]
[377219689,1754301040499,-500.0,0.00041096,30]
[377219690,1754301040509,-500.0,0.00041096,30]
[377219691,1754301040519,-500.0,0.00041096,30]
[377219692,1754301040528,-500.0,0.00041096,30]
[377219693,1754301040539,-500.0,0.00041096,30]
[377219694,1754301040548,-500.0,0.00041096,30]
[377219695,1754301040558,-500.0,0.00041096,30]
[377219696,1754301040568,-500.0,0.00041096,30]
[377219697,1754301040578,-500.0,0.00041096,30]
[377219698,1754301040589,-500.0,0.00041096,30]
[377219699,1754301040599,-500.0,0.00041096,30]
[377219700,1754301040608,-500.0,0.00041096,30]
[377219701,1754301040617,-200.0,0.00041096,20]
[377219702,1754301040627,-200.0,0.00041096,20]
[377219703,1754301040637,-250.0,0.000411,2]
[377219704,1754301040646,-391.0,0.0004114,30]
[377219705,1754301040655,-151.0,0.00041364,120]
[377219706,1754301040665,-383.36687422,0.00041368,10]
[377219707,1754301040674,-431.81146785,0.00041368,10]
[377219708,1754301040683,-204.0,0.0004146,2]
[377219709,1754301040692,-6357.03917198,0.00041625,15]
[377219710,1754301040702,-600.0,0.0004199,120]
[377219711,1754301040711,-1294.81,0.00042024,120]
[377219712,1754301040720,-511.0,0.00042334,10]
[377219713,1754301040729,-205.97,0.00042465,120]
[377219714,1754301040739,-226.39,0.00042645,2]
[377219715,1754301040748,-226.39,0.00042667,2]
[377219716,1754301040757,-841.59890878,0.00042674,2]
[377219717,1754301040767,-153.42168786,0.00042678,120]
[377219718,1754301040776,-226.39,0.0004269,2]
[377219719,1754301040786,-226.39,0.00042712,2]
[377219720,1754301040795,-226.39,0.00042734,2]
[377219721,1754301040805,-299.67,0.00042749,30]
[377219722,1754301040814,-165.39,0.00042749,30]
[377219723,1754301040825,-536.97,0.00042749,30]
[377219724,1754301040834,-165.39,0.00042749,30]
[377219725,1754301040844,-165.39,0.00042749,30]
[377219726,1754301040854,-165.39,0.00042749,30]
[377219727,1754301040863,-226.39,0.00042757,2]
[377219728,1754301040872,-226.39,0.00042779,2]
[377219729,1754301040882,-226.39,0.00042802,2]
[377219730,1754301040891,-226.39,0.00042824,2]
[377219731,1754301040902,-226.39,0.00042847,2]
[377219732,1754301040912,-2305.97783824,0.0004286,15]
[377219733,1754301040922,-226.39,0.00042869,2]
[377219734,1754301040933,-226.39,0.00042891,2]
[377219735,1754301040943,-157.54384464,0.000429,28]
[377219736,1754301040952,-226.39,0.00042914,2]
[377219737,1754301040962,-226.39,0.00042936,2]
[377219738,1754301040971,-226.39,0.00042959,2]
[377219739,1754301040983,-1000.0,0.00042971,14]
[377219740,1754301040994,-226.39,0.00042981,2]
[377219741,1754301041005,-186.15701626,0.00043004,15]
[377219742,1754301041015,-160.0,0.00043151,90]
[377219743,1754301041025,-8087.30939542,0.00043365,10]
[377219744,1754301041034,-150.0,0.00043489,2]
[377219745,1754301041044,-150.0,0.00043665,2]
[377219746,1754301041055,-511.0,0.00043693,10]
[377219747,1754301041067,-1294.81,0.00043754,120]
[377219748,1754301041079,-152.0,0.0004378,3]
[377219749,1754301041089,-205.97,0.00043835,120]
[377219750,1754301041099,-413.405,0.0004397,2]
[377219751,1754301041109,-628.06011456,0.00043973,10]
[377219752,1754301041118,-500.0,0.00043973,10]
[377219753,1754301041127,-64089.461124,0.0004399,3]
[377219754,1754301041137,-187.06,0.00043999,15]
[377219755,1754301041146,-187.06,0.00043999,15]
[377219756,1754301041155,-187.06,0.00043999,15]
[377219757,1754301041165,-187.06,0.00043999,15]
[377219758,1754301041174,-50000.0,0.00044,44]
[377219759,1754301041186,-50000.0,0.00044,54]
[377219760,1754301041198,-1000.0,0.00044,120]
[377219761,1754301041208,-457.2201239,0.00044,10]
[377219762,1754301041219,-457.2201239,0.00044,3]
[377219763,1754301041228,-158.40357478,0.0004411,120]
[377219764,1754301041238,-204.0,0.0004415,30]
[377219765,1754301041248,-6357.03917198,0.00044187,15]
[377219766,1754301041257,-150.0,0.00044234,2]
[377219767,1754301041266,-150.0,0.0004424,2]
[377219768,1754301041276,-158.26362286,0.00044382,19]
[377219769,1754301041285,-155.98,0.00044521,2]
[377219770,1754301041294,-503.58483606,0.00044521,10]
[377219771,1754301041303,-150.0,0.00044614,2]
[377219772,1754301041313,-1659.5364658,0.00044701,120]
[377219773,1754301041322,-150.0,0.00044701,2]
[377219774,1754301041331,-153.7027401,0.000448,120]
[377219775,1754301041340,-2305.97783824,0.00044805,15]
[377219776,1754301041350,-21363.153708,0.0004488,3]
[377219777,1754301041359,-680.90256734,0.0004489,22]
[377219778,1754301041373,-2269.32658923,0.000449,2]
[377219779,1754301041382,-1200.0,0.000449,16]
[377219780,1754301041392,-370.32,0.00044909,14]
[377219781,1754301041401,-21363.153708,0.0004497,3]
[377219782,1754301041413,-12286.4539374,0.0004497,3]
[377219783,1754301041422,-500.78520876,0.00044973,10]
[377219784,1754301041432,-220.37995172,0.00044973,10]
[377219785,1754301041442,-21363.153708,0.0004498,3]
[377219786,1754301041452,-36859.3618121,0.0004498,3]
[377219787,1754301041461,-42726.307416,0.0004499,3]
[377219788,1754301041471,-49145.8157494,0.0004499,3]
[377219789,1754301041481,-150.0,0.00044996,2]
[377219790,1754301041490,-50000.0,0.00045,45]
[377219791,1754301041499,-50000.0,0.00045,55]
[377219792,1754301041509,-151.0,0.00045,14]
[377219793,1754301041519,-151.0,0.00045,14]
[377219794,1754301041528,-1000.0,0.00045,120]
[377219795,1754301041538,-841.59890878,0.00045,10]
[377219796,1754301041548,-255.0,0.00045,90]
[377219797,1754301041557,-186.15701626,0.00045014,15]
[377219798,1754301041567,-150.0,0.00045026,2]
[377219799,1754301041578,-511.0,0.00045051,14]
[377219800,1754301041587,-150.0,0.00045065,2]
[377219801,1754301041597,-150.0,0.00045079,2]
[377219802,1754301041608,-205.97,0.00045205,120]
[377219803,1754301041618,-150.0,0.00045223,2]
[377219804,1754301041628,-526.79647496,0.00045232,2]
[377219805,1754301041637,-548.0,0.00045254,60]
[377219806,1754301041647,-150.0,0.00045267,2]
[377219807,1754301041656,-160.0,0.00045308,90]
[377219808,1754301041668,-150.0,0.00045335,2]
[377219809,1754301041678,-680.90256733,0.0004534,22]
[377219810,1754301041689,-671.40727201,0.00045386,2]
[377219811,1754301041699,-21363.153708,0.00045432,3]
[377219812,1754301041710,-150.0,0.00045442,2]
[377219813,1754301041720,-1294.81,0.00045484,120]
[377219814,1754301041730,-1000.0,0.00045521,10]
[377219815,1754301041739,-816.01806905,0.0004554,2]
[377219816,1754301041750,-150.0,0.00045574,14]
[377219817,1754301041760,-150.0,0.00045592,2]
[377219818,1754301041769,-150.0,0.00045643,14]
[377219819,1754301041779,-255.0,0.00045685,90]
[377219820,1754301041790,-960.6288661,0.00045694,2]
[377219821,1754301041800,-88888.0,0.00045695,120]
[377219822,1754301041812,-150.0,0.00045699,2]
[377219823,1754301041823,-150.94,0.0004578,2]
[377219824,1754301041833,-24572.9078747,0.0004579,3]
[377219825,1754301041843,-680.90256733,0.0004579,23]
[377219826,1754301041854,-150.0,0.00045795,14]
[377219827,1754301041864,-25028.30291718,0.000458,120]
[377219828,1754301041878,-2500.0,0.000458,16]
[377219829,1754301041889,-192.92621819,0.00045801,21]
[377219830,1754301041900,-150.0,0.00045809,14]
[377219831,1754301041910,-1105.23966315,0.00045848,2]
[377219832,1754301041921,-178.26094196,0.00045851,7]
[377219833,1754301041934,-21363.153708,0.0004586,3]
[377219834,1754301041944,-12286.4539374,0.0004586,3]
[377219835,1754301041954,-150.94,0.0004586,2]
[377219836,1754301041964,-21363.153708,0.0004587,3]
[377219837,1754301041974,-12286.4539374,0.0004587,3]
[377219838,1754301041983,-501.0987251,0.00045873,10]
[377219839,1754301041995,-501.25218818,0.00045873,10]
[377219840,1754301042263,-21363.153708,0.0004588,3]
[377219841,1754301042273,-36859.3618121,0.0004588,3]
[377219842,1754301042283,-150.94,0.0004588,2]
[377219843,1754301042293,-150.94,0.0004588,2]
[377219844,1754301042304,-85452.614832,0.0004589,3]
[377219845,1754301042314,-73718.7236242,0.0004589,3]
[377219846,1754301042324,-150.94,0.0004589,2]
[377219847,1754301042336,-150.94,0.0004589,2]
[377219848,1754301042345,-20387.47438587,0.00045892,61]
[377219849,1754301042355,-5460833.53596529,0.00045892,7]
[377219854,1754301043172,-1002.57343487,0.00045892,7]
[377219857,1754301043221,-62139.61352507,0.00045892,7]
[377219860,1754301043385,-822.68261482,0.00045892,7]
[377219861,1754301043397,-18299.10695548,0.00045892,7]
[377219862,1754301043409,-4616.09668956,0.00045892,7]
[377219863,1754301043421,-11639.03768697,0.00045892,7]
[377219864,1754301043432,-16020.17738414,0.00045892,7]
[377219865,1754301044251,-589.66194339,0.00045892,7]
[377219866,1754301044308,-587.13385103,0.00045892,7]
[377219867,1754301044319,-1260.3,0.00045892,7]
[377219868,1754301044331,-9526.47575124,0.00045892,7]
[377219869,1754301044419,-81032.43354908,0.00045892,7]
[377219870,1754301044433,-1424706.79908646,0.00045892,7]
[377219871,1754301044446,-238426.79982766,0.00045892,7]
[377219872,1754301044476,-300.86614897,0.00045892,7]
[377219873,1754301044488,-44600.56572066,0.00045892,7]
[377219874,1754301044499,-591.46997237,0.00045892,7]
[377219875,1754301044510,-5836.92405007,0.00045892,7]
[377219876,1754301044521,-607.7097764,0.00045892,7]
[377219877,1754301044547,-14529.55879379,0.00045892,7]
[377219878,1754301044559,-962.65028005,0.00045892,7]
[377219879,1754301044570,-3526.8608584,0.00045892,7]
[377219881,1754301045420,-5686.67575233,0.00045892,7]
[377219882,1754301045433,-16542.80498265,0.00045892,7]
[377219883,1754301045446,-480.0,0.00045892,7]
[377219884,1754301045460,-290.97729186,0.00045892,7]
[377219885,1754301045492,-35869.56399238,0.00045892,7]
[377219886,1754301045505,-368.902,0.00045892,7]
[377219887,1754301045518,-24749.5,0.00045892,7]
[377219888,1754301045531,-1394.8043001,0.00045892,7]
[377219889,1754301045547,-4501.33634472,0.00045892,7]
[377219890,1754301045560,-562.6023957,0.00045892,7]
[377219891,1754301045572,-619.70755525,0.00045892,7]
[377219892,1754301045594,-8411.02613978,0.00045892,7]
[377219893,1754301045608,-7555.09474621,0.00045892,7]
[377219894,1754301045620,-1417.20533263,0.00045892,7]
[377219895,1754301045633,-705.75654509,0.00045892,7]
[377219896,1754301045645,-297.3600018,0.00045892,7]
[377219897,1754301045658,-433.7526704,0.00045892,7]
[377219898,1754301045670,-322.12437,0.00045892,7]
[377219899,1754301045682,-8689.6427971,0.00045892,7]
[377219900,1754301045695,-13414.42194429,0.00045892,7]
[377219901,1754301045707,-13247.60550161,0.00045892,7]
[377219902,1754301045745,-1730.7967739,0.00045892,7]
[377219903,1754301045758,-1112.49100024,0.00045892,7]
[377219904,1754301045770,-17275.88767176,0.00045892,7]
[377219905,1754301045784,-474.38004992,0.00045892,7]
[377219906,1754301045796,-306.0,0.00045892,7]
[377219907,1754301045808,-46505.87285835,0.00045892,7]
[377219908,1754301045821,-933.975,0.00045892,7]
[377219911,1754301045946,-537.09,0.00043594,30]
[377219912,1754301045957,-814.21315474,0.00045892,7]
[377219913,1754301045970,-732.83233899,0.00045892,7]
[377219923,1754301047948,-359.08,0.00043594,30]
[377219924,1754301047963,-172.46,0.00043594,30]
[377219925,1754301047977,-374.8527527,0.00045892,7]
[377219926,1754301048022,-462.26535075,0.00045892,7]
[377219927,1754301048039,-452853.20194263,0.00045892,7]
[377219928,1754301048055,-891.0268904,0.00045892,7]
[377219929,1754301048071,-255.187809,0.00045892,7]
[377219930,1754301048152,-2792.38063908,0.00045892,7]
[377219931,1754301048168,-69143.00819905,0.00045892,7]
[377219932,1754301048184,-2159.96324397,0.00045892,7]
[377219933,1754301048201,-959.68392034,0.00045892,7]
[377219934,1754301048217,-368.3346278,0.00045892,7]
[377219935,1754301048234,-7627.22568312,0.00045892,7]
[377219936,1754301048256,-1586.04999,0.00045892,7]
[377219937,1754301048272,-156285.66015502,0.00045892,7]
[377219938,1754301048290,-2954.93571423,0.00045892,7]
[377219939,1754301048306,-17566.98392655,0.00045892,7]
[377219940,1754301048322,-342.21,0.00045892,7]
[377219941,1754301048340,-322.8916,0.00045892,7]
[377219942,1754301048435,-33238.03696836,0.00045892,7]
[377219951,1754301212781,154.3,0.00013699,2]
[377219960,1754301606200,300.0,0.00030137,120]
[377219961,1754301606283,300.0,0.00027397,120]
[377219963,1754301607935,300.0,0.00030137,120]
[377220001,1754302021826,205.54,0.0003013,120]
[377220008,1754302088343,1749.57935094,7.945e-05,2]
[377220009,1754302088369,1552.41636606,7.945e-05,2]
[377220010,1754302089188,1357.0,0.00030137,120]
[377220043,1754302231853,-150.0,0.00027397,2]
[377220044,1754302231864,-154.3,0.00027397,2]
[377220045,1754302231874,-150.0,0.00028767,2]
[377220046,1754302231887,-319.26,0.00029542,2]
[377220047,1754302231898,-150.0,0.00030136,2]
[377220048,1754302231909,-250.0,0.00030137,2]
[377220049,1754302231921,-163.65,0.00031186,2]
[377220050,1754302231931,-319.26,0.00031272,2]
[377220051,1754302231941,-150.0,0.00031506,2]
[377220052,1754302231951,-1626.780761,0.00032711,2]
[377220053,1754302231962,-166.75864819,0.00032776,2]
[377220054,1754302231971,-150.0,0.00032876,2]
[377220055,1754302231980,-319.26,0.00033003,2]
[377220056,1754302231990,-1200.0,0.00033212,3]
[377220057,1754302231999,-600.0,0.00033213,2]
[377220058,1754302232008,-600.0,0.00033213,2]
[377220059,1754302232018,-600.0,0.00033213,2]
[377220060,1754302232027,-600.0,0.00033213,2]
[377220061,1754302232038,-600.0,0.00033213,2]
[377220062,1754302232047,-482.66,0.00033213,2]
[377220063,1754302232057,-500.0,0.0003333,5]
[377220064,1754302232067,-5720.71223726,0.000339,29]
[377220065,1754302232104,-3041.2660053,0.000339,29]
[377220105,1754302232435,-5501.80910679,0.000339,29]
[377220107,1754302232445,-174.68,0.00033945,2]
[377220109,1754302232455,-1172.09,0.00033948,2]
[377220111,1754302232464,-200.0,0.00034,30]
[377220113,1754302232474,-150.0,0.00034048,2]
[377220115,1754302232484,-613.96,0.00034054,2]
[377220117,1754302232494,-351.19,0.00034064,2]
[377220120,1754302232504,-1000.0,0.00034082,2]
[377220122,1754302232514,-666.0,0.00034084,3]
[377220124,1754302232523,-150.0,0.00034246,2]
[377220125,1754302232533,-2484.43534299,0.00034348,30]
[377220128,1754302232544,-390.38666464,0.00034348,30]
[377220129,1754302232555,-603.43,0.00034348,30]
[377220130,1754302232632,-10785.53534145,0.00034348,30]
[377220131,1754302232642,-196.0,0.00034416,3]
[377220132,1754302232651,-600.0,0.00034435,2]
[377220133,1754302232661,-600.0,0.00034435,2]
[377220134,1754302232670,-358.27452433,0.00034435,2]
[377220136,1754302232680,-1665.18968948,0.00034438,2]
[377220138,1754302232689,-1702.12704528,0.00034456,2]
[377220140,1754302232700,-524.67614195,0.00034456,2]
[377220142,1754302232711,-1227.4306351,0.00034456,2]
[377220440,1754302238156,-5485.03502366,0.00034456,2]
[377220453,1754302238326,-317.98127747,0.00034456,2]
[377220456,1754302238338,-5653.29370336,0.00034456,2]
[377220458,1754302238349,-8989.45617318,0.00034456,2]
[377220460,1754302238359,-2500.0,0.00034558,10]
[377220462,1754302238368,-2500.0,0.00034566,10]
[377220463,1754302238377,-500.0,0.00034567,5]
[377220464,1754302238387,-2500.0,0.00034575,10]
[377220465,1754302238396,-2500.0,0.00034584,10]
[377220466,1754302238406,-211.425049,0.00034584,10]
[377220467,1754302238415,-2500.0,0.00034593,10]
[377220468,1754302238426,-2500.0,0.00034602,10]
[377220469,1754302238435,-175.37655789,0.00034602,39]
[377220470,1754302238445,-878.86,0.00034602,39]
[377220471,1754302238454,-2500.0,0.0003461,10]
[377220472,1754302238463,-2500.0,0.00034619,10]
[377220473,1754302238473,-2500.0,0.00034628,10]
[377220474,1754302238482,-434.61031635,0.00034637,10]
[377220475,1754302238496,-2065.38968365,0.00034637,10]
[377220476,1754302238505,-2500.0,0.00034646,10]
[377220477,1754302238516,-2500.0,0.00034654,10]
[377220478,1754302238525,-185.3,0.00034661,30]
[377220479,1754302238535,-2500.0,0.00034663,10]
[377220480,1754302238544,-2500.0,0.00034672,10]
[377220481,1754302238554,-1367.55,0.00034695,2]
[377220482,1754302238565,-167.82,0.000347,2]
[377220483,1754302238575,-186.28,0.000347,2]
[377220484,1754302238586,-250.0,0.00034703,2]
[377220485,1754302238596,-319.26,0.00034733,2]
[377220486,1754302238607,-1915.66,0.00034791,120]
[377220487,1754302238618,-9645.68760944,0.00034797,31]
[377220488,1754302238650,-427.71644409,0.00034797,31]
[377220515,1754302239829,-1315.56525148,0.00034797,31]
[377220517,1754302239842,-590.70084419,0.00034797,31]
[377220519,1754302239856,-729.722072,0.00034797,31]
[377220546,1754302240113,-252.62,0.00034797,31]
[377220547,1754302240222,-3.39254194,0.00034797,31]
[377220650,1754302242747,-268.48594961,0.00034797,31]
[377220651,1754302242766,-400.0,0.00034797,31]
[377220652,1754302243053,-4.14769863,0.00034797,31]
[377220653,1754302243069,-625.7489377,0.00034797,31]
[377220654,1754302243078,-200.0,0.00034862,2]
[377220655,1754302243088,-14263.78734908,0.00035245,32]
[377220656,1754302243097,-216.12,0.00035616,2]
[377220657,1754302243108,-441.0,0.00035679,5]
[377220658,1754302243118,-14263.78734908,0.00035693,33]
[377220659,1754302243127,-186.28,0.00036002,2]
[377220660,1754302243138,-14263.78734908,0.00036141,34]
[377220661,1754302243148,-288.65402452,0.00036407,120]
[377220662,1754302243158,-285.42171584,0.00036407,120]
[377220663,1754302243167,-319.26,0.00036463,2]
[377220664,1754302243177,-14263.78734908,0.0003659,35]
[377220665,1754302243188,-153.42168786,0.00036724,2]
[377220666,1754302243198,-2428.24712895,0.00036824,2]
[377220667,1754302243208,-14263.78734908,0.00037038,36]
[377220668,1754302243218,-216.25265329,0.00037283,16]
[377220669,1754302243228,-186.28,0.00037303,2]
[377220670,1754302243239,-280.0,0.000374,30]
[377220671,1754302243249,-14263.78734908,0.00037486,36]
[377220672,1754302243260,-2428.24712892,0.00037927,2]
[377220673,1754302243272,-14263.78734908,0.00037934,37]
[377220674,1754302243282,-319.26,0.00038194,2]
[377220676,1754302243292,-186.15701626,0.00038256,15]
[377220677,1754302243303,-278.93120105,0.00038256,2]
[377220679,1754302243312,-152.0,0.00038338,3]
[377220680,1754302243322,-1000.0,0.00038342,2]
[377220681,1754302243333,-150.0,0.00038356,12]
[377220682,1754302243343,-457.08,0.00038356,2]
[377220683,1754302243354,-300.0,0.00038356,2]
[377220684,1754302243365,-226.93673774,0.00038356,2]
[377220685,1754302243375,-400.0,0.00038356,2]
[377220686,1754302243385,-1565.93,0.00038356,2]
[377220687,1754302243395,-618.43,0.00038356,2]
[377220688,1754302243405,-400.0,0.00038356,2]
[377220689,1754302243416,-2266.0,0.00038356,2]
[377220691,1754302243425,-1345.62,0.00038356,2]
[377220693,1754302243435,-400.0,0.00038356,2]
[377220695,1754302243444,-400.0,0.00038356,2]
[377220698,1754302243454,-1461.77,0.00038356,2]
[377220700,1754302243463,-586.08,0.00038356,2]
[377220702,1754302243473,-4552.13,0.00038356,2]
[377220704,1754302243482,-666.33,0.00038356,2]
[377220706,1754302243491,-106763.03,0.00038356,2]
[377220708,1754302243501,-400.0,0.00038356,2]
[377220710,1754302243510,-400.0,0.00038356,2]
[377220712,1754302243520,-494.69,0.00038356,2]
[377220714,1754302243529,-601.63,0.00038356,2]
[377220716,1754302243539,-1203.59,0.00038356,2]
[377220717,1754302243549,-400.0,0.00038356,2]
[377220718,1754302243559,-517.06,0.00038356,2]
[377220719,1754302243568,-1125.56,0.00038356,2]
[377220720,1754302243578,-400.0,0.00038356,2]
[377220721,1754302243593,-1188.04,0.00038356,2]
[377220722,1754302243603,-1419.52,0.00038356,2]
[377220723,1754302243612,-452.41,0.00038356,2]
[377220724,1754302243622,-4421.98,0.00038356,2]
[377220725,1754302243631,-400.0,0.00038356,2]
[377220726,1754302243641,-400.0,0.00038356,2]
[377220728,1754302243650,-2182.83,0.00038356,2]
[377220730,1754302243659,-400.0,0.00038356,2]
[377220732,1754302243669,-400.0,0.00038356,2]
[377220734,1754302243679,-787.36,0.00038356,2]
[377220736,1754302243688,-1341.61,0.00038356,2]
[377220738,1754302243698,-456.5,0.00038356,2]
[377220740,1754302243707,-400.0,0.00038356,2]
[377220742,1754302243717,-1538.82,0.00038356,2]
[377220744,1754302243726,-471.31355613,0.00038356,2]
[377220746,1754302243736,-1796.91,0.00038356,2]
[377220748,1754302243745,-400.0,0.00038356,2]
[377220750,1754302243754,-400.0,0.00038356,2]
[377220752,1754302243763,-400.0,0.00038356,2]
[377220754,1754302243773,-2821.97,0.00038356,2]
[377220756,1754302243783,-400.0,0.00038356,2]
[377220758,1754302243792,-400.0,0.00038356,2]
[377220760,1754302243802,-400.0,0.00038356,2]
[377220762,1754302243814,-400.0,0.00038356,2]
[377220764,1754302243823,-400.0,0.00038356,2]
[377220765,1754302243834,-1540.74,0.00038356,2]
[377220768,1754302243844,-936.94,0.00038356,2]
[377220770,1754302243855,-400.0,0.00038356,2]
[377220772,1754302243865,-400.0,0.00038356,2]
[377220774,1754302243875,-400.0,0.00038356,2]
[377220776,1754302243885,-400.0,0.00038356,2]
[377220778,1754302243895,-454.27,0.00038356,2]
[377220780,1754302243905,-400.0,0.00038356,2]
[377220782,1754302243916,-400.0,0.00038356,2]
[377220784,1754302243925,-400.0,0.00038356,2]
[377220786,1754302243936,-400.0,0.00038356,2]
[377220788,1754302243946,-507.14,0.00038356,2]
[377220790,1754302243957,-400.0,0.00038356,2]
[377220792,1754302243967,-851.02,0.00038356,2]
[377220794,1754302243976,-446.98,0.00038356,2]
[377220796,1754302243985,-591.23,0.00038356,120]